[Event "EICC 2025"]
[Site "Eforie-Nord"]
[Date "2025.03.16"]
[Round "2.12"]
[White "Saric, Ivan"]
[Black "Stoyanov, Tsvetan"]
[Result "1-0"]
[Annotator "TA"]
[ECO "C47"]
[WhiteElo "2652"]
[BlackElo "2469"]
[PlyCount "85"]
[EventDate "2025.03.14"]
[EventType "swiss"]
[EventCountry "ROU"]
[SourceTitle "playchess.com"]
[Source "ChessBase"]
[SourceQuality "1"]
[TimeControl "40/5400+30:1800+30"]

{[%evp 9,85,0,0,0,0,-17,7,9,37,48,45,39,62,52,56,50,65,53,50,45,68,61,74,70,115,106,188,37,31,42,123,115,117,106,120,124,196,213,215,218,203,199,277,269,280,256,279,243,242,226,283,274,318,326,368,343,381,377,427,288,290,293,848,818,379,308,635,625,1516,1268,1139,1132,1124,1116,1530,1518,530,516]} 1. e4 {[%emt 0:00:02]} e5 {[%emt 0:00:14]} 2. Nf3 {[%emt 0:00:04]} Nf6 {[%emt 0:00:06]} 3. Nc3 {[%emt 0:01:00]} Nc6 {[%emt 0:00:48]} 4. h3 {[%emt 0:00:04]} Bb4 {[%emt 0:00:45]} 5. Bd3 {[%emt 0:00:05]} O-O {[%emt 0:00:50]} 6. O-O {[%emt 0:00:05] C47: Scotch Four Knights and Four Knights with 4 g3.} d6 {[%emt 0:00:35]} 7. Ne2 {[%emt 0:07:39]} Bc5 {[%emt 0:11:35]} 8. Ng3 {[%emt 0:02:06] The position is equal.} Ne7 $146 {[%emt 0:19:51]} (8... Be6 9. c3 d5 10. Ng5 a5 11. Bb5 Nxe4 12. N3xe4 dxe4 13. Nxe6 fxe6 14. Qe2 Qh4 15. d3 exd3 16. Bxd3 Rxf2 17. Rxf2 Qg3 18. Bxh7+ Kxh7 {½-½ Galperin,P (2528)-Aryan,C (2617) Sharjah Masters 6th 2023 (1)}) 9. c3 {[%emt 0:00:53]} Ng6 {[%emt 0:00:05]} 10. Bc2 {[%emt 0:00:13]} c6 {[%emt 0:01:22]} 11. d4 {[%emt 0:00:05]} Bb6 {[%emt 0:00:03]} 12. Re1 {[%emt 0:03:29]} Re8 {[%emt 0:02:49]} 13. Be3 {[%emt 0:06:06]} h6 {[%emt 0:16:56]} 14. Qd2 {[%emt 0:00:32]} Be6 {[%emt 0:02:45]} 15. a4 {[%emt 0:05:53]} a5 {[%emt 0:03:45]} 16. Rad1 {[%emt 0:00:05]} Qc7 {[%emt 0:01:00]} 17. Nf5 {[%emt 0:03:45][%cal Oe3h6]} d5 {[%emt 0:11:56]} (17... Kh7 $16) 18. exd5 $2 {[%emt 0:08:04]} (18. Nxg7 $1 $18 Kxg7 19. exd5 cxd5 (19... Bxd5 20. Bxh6+ Kh8 21. Nxe5 $18) 20. Bxh6+ Kg8 21. Nxe5 (21. dxe5 Ne4 $11)) 18... Bxf5 $1 $14 {[%emt 0:01:42]} 19. Bxf5 {[%emt 0:00:09]} e4 {[%emt 0:01:33] White now steadily converts the win.} (19... exd4 $1 $14 20. Nxd4 (20. Bxd4 Bxd4 21. Nxd4 cxd5 $16) 20... Nxd5) 20. Bxg6 $16 {[%emt 0:05:01]} exf3 {[%emt 0:00:06]} 21. Bf4 {[%emt 0:01:00]} Rxe1+ {[%emt 0:07:44]} 22. Rxe1 {[%emt 0:00:05]} Qc8 {[%emt 0:00:12]} (22... Qd7 $16) 23. Bc2 $18 {[%emt 0:01:11] A strong pair of Bishops.} fxg2 {[%emt 0:03:33]} 24. Kxg2 {[%emt 0:04:35]} (24. Qd3 cxd5 25. Kxg2 Qc6 $14) 24... Nxd5 {[%emt 0:07:08] [#]} 25. Bxh6 $1 {[%emt 0:00:58]} Bc7 {[%emt 0:00:55] [#]} (25... gxh6 $2 {loses.} 26. Qxh6 f5 27. Kh1 $18) (25... Qd8 $142) 26. Qd3 $1 {[%emt 0:07:11]} f5 {[%emt 0:00:08]} (26... g6 27. Qf3) 27. Bd2 {[%emt 0:01:41]} g6 {[%emt 0:03:57]} 28. Bb3 $40 {[%emt 0:01:39][%mdl 128] Black is in trouble.} Qd7 {[%emt 0:00:06]} 29. Qf3 {[%emt 0:03:26]} Rf8 {[%emt 0:01:35]} 30. Bg5 {[%emt 0:02:42]} Rf7 {[%emt 0:00:46]} 31. h4 {[%emt 0:00:38][%cal Bh3h4,Bh4h5,Bh5h6,Bh6h7][%mdl 32]} Kg7 {[%emt 0:00:21]} 32. h5 {[%emt 0:01:16]} Qd6 {[%emt 0:00:39]} 33. Rh1 {[%emt 0:00:25] Repels Qh2+} ({Less strong is} 33. Re5 gxh5 34. Rxf5 (34. Bxd5 cxd5 35. Rxf5 Qg6 $16) 34... Rxf5 35. Qxf5 Qg6 $18) 33... Rf8 {[%emt 0:00:04]} 34. Bxd5 {[%emt 0:02:41]} Qxd5 {[%emt 0:01:01]} 35. h6+ {[%emt 0:01:15]} Kf7 $2 {[%emt 0:00:29]} (35... Kh7 36. Qxd5 cxd5) 36. Qxd5+ {[%emt 0:00:32]} cxd5 {[%emt 0:00:01][%mdl 4096] Endgame KRB-KRB. White is a pawn up.} 37. Kf3 {[%emt 0:01:10] Threatens to win with h7.} Re8 $2 {[%emt 0:00:58]} (37... Kg8 38. Re1 Rf7 39. Re8+ Kh7) 38. h7 {[%emt 0:00:31][%cal Oh1e1] White threatens Re1! and mate. White is clearly winning.} Rh8 {[%emt 0:00:01]} 39. Bf4 {[%emt 0:00:22]} Bd8 {[%emt 0:00:41]} 40. Be5 {[%emt 0:00:14]} Bf6 {[%emt 0:00:01]} 41. Kf4 {[%emt 0:30:30]} Ke6 {[%emt 0:30:16]} 42. Bxf6 {[%emt 0:00:08]} Kxf6 {[%emt 0:00:01]} 43. Rh6 {[%emt 0:00:12] Weighted Error Value: White=0.15 (very precise) /Black=0.70  Mistake:       	White=1     	Black=5      Inaccurate:     	White=1     	Black=3      OK:         	White=18    	Black=7      Best:        	White=1     	Black=1      Strong:       	White=2     	Black=1} 1-0

[Event "EICC 2025"]
[Site "Eforie-Nord"]
[Date "2025.03.16"]
[Round "2.12"]
[White "Lazov, Toni"]
[Black "Sokolovsky, Yahli"]
[Result "1/2-1/2"]
[Annotator "ChessBase"]
[ECO "B21"]
[WhiteElo "2400"]
[BlackElo "2545"]
[PlyCount "81"]
[EventDate "2025.03.14"]
[EventType "swiss"]
[EventCountry "ROU"]
[SourceTitle "playchess.com"]
[Source "ChessBase"]
[SourceQuality "1"]
[TimeControl "40/5400+30:1800+30"]

1. e4 {[%emt 0:00:04]} c5 {[%emt 0:00:04]} 2. Be2 {[%emt 0:02:50]} Nc6 {[%emt 0:01:00]} 3. f4 {[%emt 0:00:17]} d5 {[%emt 0:01:27]} 4. d3 {[%emt 0:00:29]} e6 {[%emt 0:00:23]} 5. Nf3 {[%emt 0:01:45]} Bd6 {[%emt 0:00:06]} 6. e5 {[%emt 0:17:29]} Bc7 {[%emt 0:00:37]} 7. c3 {[%emt 0:04:57]} Nge7 {[%emt 0:06:57]} 8. d4 {[%emt 0:03:20]} cxd4 {[%emt 0:01:28]} 9. cxd4 {[%emt 0:00:03]} Nf5 {[%emt 0:01:18]} 10. Na3 {[%emt 0:11:56]} Ba5+ {[%emt 0:02:05]} 11. Kf1 {[%emt 0:01:36]} O-O {[%emt 0:06:14]} 12. Nc2 {[%emt 0:13:07]} f6 {[%emt 0:00:56]} 13. g4 {[%emt 0:01:15]} Nfe7 {[%emt 0:05:10]} 14. Kg2 {[%emt 0:04:14]} Ng6 {[%emt 0:00:13]} 15. Kg3 {[%emt 0:10:29]} fxe5 {[%emt 0:20:07]} 16. fxe5 {[%emt 0:00:17]} Bc7 {[%emt 0:04:24]} 17. h4 {[%emt 0:02:21]} Qf6 {[%emt 0:17:24]} 18. Bg5 {[%emt 0:02:37]} Qf7 {[%emt 0:00:02]} 19. Rf1 {[%emt 0:02:24]} Nf4 {[%emt 0:03:28]} 20. Ng1 {[%emt 0:03:11]} Nxe2+ {[%emt 0:00:39]} 21. Qxe2 {[%emt 0:00:37]} Qe8 {[%emt 0:03:27]} 22. Rxf8+ {[%emt 0:00:58]} Qxf8 {[%emt 0:00:01]} 23. h5 {[%emt 0:02:46]} Bd7 {[%emt 0:00:47]} 24. Rf1 {[%emt 0:01:45]} Qe8 {[%emt 0:00:01]} 25. Nf3 {[%emt 0:04:12]} Nd8 {[%emt 0:06:06]} 26. Rc1 {[%emt 0:01:00]} Rc8 {[%emt 0:01:41]} 27. Nce1 {[%emt 0:02:58]} Bb5 {[%emt 0:02:12]} 28. Qd2 {[%emt 0:00:57]} Nf7 {[%emt 0:00:02]} 29. Be3 {[%emt 0:00:49]} Bb6 {[%emt 0:00:23]} 30. Rxc8 {[%emt 0:01:54]} Qxc8 {[%emt 0:00:01]} 31. Qb4 {[%emt 0:00:01]} Qd7 {[%emt 0:00:48]} 32. b3 {[%emt 0:01:32]} a5 {[%emt 0:01:01]} 33. Qd2 {[%emt 0:00:02]} Bd8 {[%emt 0:02:45]} 34. Ng2 {[%emt 0:00:50]} Qe7 {[%emt 0:04:19]} 35. Nf4 {[%emt 0:00:01]} Bd7 {[%emt 0:03:10]} 36. Qc1 {[%emt 0:00:58]} Bb6 {[%emt 0:03:28]} 37. Bd2 {[%emt 0:01:03]} Nd8 {[%emt 0:02:04]} 38. Nh3 {[%emt 0:01:47]} Nc6 {[%emt 0:00:12]} 39. Bc3 {[%emt 0:00:37]} Na7 {[%emt 0:02:19]} 40. a4 {[%emt 0:00:30]} Nc6 {[%emt 0:00:51]} 41. Qg5 {[%emt 0:16:12]} 1/2-1/2

[Event "EICC 2025"]
[Site "Eforie-Nord"]
[Date "2025.03.16"]
[Round "2.13"]
[White "Dudin, Gleb"]
[Black "Ahmad, Khagan"]
[Result "1-0"]
[Annotator "ChessBase"]
[ECO "D38"]
[WhiteElo "2544"]
[BlackElo "2391"]
[PlyCount "163"]
[EventDate "2025.03.14"]
[EventType "swiss"]
[EventCountry "ROU"]
[SourceTitle "playchess.com"]
[Source "ChessBase"]
[SourceQuality "1"]
[TimeControl "40/5400+30:1800+30"]

1. d4 {[%emt 0:00:22]} Nf6 {[%emt 0:00:13]} 2. c4 {[%emt 0:00:09]} e6 {[%emt 0:00:09]} 3. Nf3 {[%emt 0:00:07]} d5 {[%emt 0:00:05]} 4. Nc3 {[%emt 0:00:06]} Bb4 {[%emt 0:00:07]} 5. cxd5 {[%emt 0:00:08]} exd5 {[%emt 0:00:05]} 6. Bf4 {[%emt 0:00:06]} O-O {[%emt 0:05:07]} 7. e3 {[%emt 0:00:10]} c5 {[%emt 0:00:10]} 8. Bd3 {[%emt 0:00:22]} c4 {[%emt 0:04:50]} 9. Bb1 {[%emt 0:00:14]} Qa5 {[%emt 0:00:09]} 10. Qc1 {[%emt 0:00:32]} Bg4 {[%emt 0:01:57]} 11. Ne5 {[%emt 0:04:03]} Bh5 {[%emt 0:01:55]} 12. a3 {[%emt 0:05:04]} Bg6 {[%emt 0:13:18]} 13. O-O {[%emt 0:10:28]} Bxc3 {[%emt 0:41:46]} 14. Nxg6 {[%emt 0:03:18]} hxg6 {[%emt 0:01:25]} 15. bxc3 {[%emt 0:00:31]} Nc6 {[%emt 0:12:24]} 16. f3 {[%emt 0:04:39]} Rfe8 {[%emt 0:01:51]} 17. Ra2 {[%emt 0:01:48]} b5 {[%emt 0:02:00]} 18. g4 {[%emt 0:00:55]} Qb6 {[%emt 0:00:48]} 19. h4 {[%emt 0:00:34]} a5 {[%emt 0:01:09]} 20. Rh2 {[%emt 0:01:05]} b4 {[%emt 0:01:25]} 21. h5 {[%emt 0:00:33]} gxh5 {[%emt 0:00:02]} 22. gxh5 {[%emt 0:03:00]} bxc3 {[%emt 0:00:41]} 23. Kh1 {[%emt 0:01:14]} Kh8 {[%emt 0:08:49]} 24. Rg1 {[%emt 0:00:51]} Nxd4 {[%emt 0:01:01]} 25. exd4 {[%emt 0:00:56]} Qxd4 {[%emt 0:00:02]} 26. Bh6 {[%emt 0:00:38]} Rg8 {[%emt 0:00:03]} 27. Qg5 {[%emt 0:01:31]} Nh7 {[%emt 0:01:48]} 28. Qf5 {[%emt 0:04:02]} Nf8 {[%emt 0:00:06]} 29. Bg5 {[%emt 0:03:44]} Ra6 {[%emt 0:00:52]} 30. Bc2 {[%emt 0:06:32]} f6 {[%emt 0:00:37]} 31. Bf4 {[%emt 0:02:44]} Re6 {[%emt 0:00:04]} 32. Rhg2 {[%emt 0:01:29]} Qc5 {[%emt 0:00:59]} 33. a4 {[%emt 0:06:03]} Qc6 {[%emt 0:00:25]} 34. Rd1 {[%emt 0:16:04]} d4 {[%emt 0:00:10]} 35. Rxd4 {[%emt 0:00:18]} Qxf3 {[%emt 0:00:20]} 36. Bd6 {[%emt 0:01:48]} Re1+ {[%emt 0:00:56]} 37. Kh2 {[%emt 0:00:04]} Qxf5 {[%emt 0:00:37]} 38. Bxf5 {[%emt 0:00:06]} Ne6 {[%emt 0:00:16]} 39. Rxc4 {[%emt 0:00:15]} Rd8 {[%emt 0:00:38]} 40. Bg3 {[%emt 0:05:59]} Re3 {[%emt 0:00:16]} 41. Bf2 {[%emt 0:30:51]} Re5 {[%emt 0:30:34]} 42. Bg6 {[%emt 0:00:35]} Kg8 {[%emt 0:00:00]} 43. Rxc3 {[%emt 0:00:00]} Nf4 {[%emt 0:00:00]} 44. Bb6 {[%emt 0:00:00]} Rf8 {[%emt 0:00:00]} 45. Bc7 {[%emt 0:00:00]} Nxg6 {[%emt 0:00:00]} 46. hxg6 {[%emt 0:00:00]} Re4 {[%emt 0:00:00]} 47. Ra2 {[%emt 0:00:00]} Ra8 {[%emt 0:00:00]} 48. Kg3 {[%emt 0:00:00]} f5 {[%emt 0:00:00]} 49. Kf3 {[%emt 0:00:00]} Re6 {[%emt 0:00:00]} 50. Rc5 {[%emt 0:00:00]} Rxg6 {[%emt 0:00:00]} 51. Rxa5 {[%emt 0:00:00]} Rxa5 {[%emt 0:04:28]} 52. Bxa5 {[%emt 0:00:00]} Ra6 {[%emt 0:00:08]} 53. Bd2 {[%emt 0:00:00]} Kf7 {[%emt 0:00:12]} 54. a5 {[%emt 0:00:00]} Ke6 {[%emt 0:01:57]} 55. Kf4 {[%emt 0:00:00]} Kd7 {[%emt 0:00:27]} 56. Be3 {[%emt 0:00:00]} Kc7 {[%emt 0:00:34]} 57. Bb6+ {[%emt 0:00:00]} Kb7 {[%emt 0:00:14]} 58. Kxf5 {[%emt 0:00:00]} Ra8 {[%emt 0:00:01]} 59. Ke6 {[%emt 0:00:00]} Ka6 {[%emt 0:00:45]} 60. Rg2 {[%emt 0:00:00]} g5 {[%emt 0:00:18]} 61. Rxg5 {[%emt 0:00:00]} Rc8 {[%emt 0:00:24]} 62. Rg7 {[%emt 0:01:08]} Rc6+ {[%emt 0:00:19]} 63. Kd5 {[%emt 0:00:21]} Rc2 {[%emt 0:00:45]} 64. Ra7+ {[%emt 0:01:44]} Kb5 {[%emt 0:00:04]} 65. Ra8 {[%emt 0:01:35]} Rh2 {[%emt 0:00:51]} 66. Be3 {[%emt 0:02:06]} Rh3 {[%emt 0:00:28]} 67. Ke4 {[%emt 0:01:08]} Rh4+ {[%emt 0:00:59]} 68. Kd3 {[%emt 0:00:30]} Ra4 {[%emt 0:00:08]} 69. Bd2 {[%emt 0:00:21]} Ra3+ {[%emt 0:00:30]} 70. Bc3 {[%emt 0:00:10]} Ra4 {[%emt 0:00:35]} 71. Rb8+ {[%emt 0:00:18]} Ka6 {[%emt 0:00:02]} 72. Rb6+ {[%emt 0:00:10]} Ka7 {[%emt 0:00:02]} 73. Bb4 {[%emt 0:00:11]} Ra2 {[%emt 0:00:14]} 74. Kc4 {[%emt 0:00:19]} Rg2 {[%emt 0:00:13]} 75. Kb5 {[%emt 0:00:25]} Rg5+ {[%emt 0:00:09]} 76. Bc5 {[%emt 0:00:07]} Ka8 {[%emt 0:00:02]} 77. Rh6 {[%emt 0:00:30]} Rg8 {[%emt 0:00:07]} 78. Ka6 {[%emt 0:00:34]} Rc8 {[%emt 0:00:07]} 79. Bb6 {[%emt 0:00:20]} Re8 {[%emt 0:00:37]} 80. Rh7 {[%emt 0:00:11]} Rc8 {[%emt 0:00:22]} 81. Ra7+ {[%emt 0:00:30]} Kb8 {[%emt 0:00:01]} 82. Rb7+ {[%emt 0:00:09]} 1-0

[Event "EICC 2025"]
[Site "Eforie-Nord"]
[Date "2025.03.16"]
[Round "2.13"]
[White "Olsen, Filip Boe"]
[Black "Kollars, Dmitrij"]
[Result "1/2-1/2"]
[Annotator "TA"]
[ECO "E05"]
[WhiteElo "2468"]
[BlackElo "2649"]
[PlyCount "69"]
[EventDate "2025.03.14"]
[EventType "swiss"]
[EventCountry "ROU"]
[SourceTitle "playchess.com"]
[Source "ChessBase"]
[SourceQuality "1"]
[TimeControl "40/5400+30:1800+30"]

{[%evp 24,69,0,3,16,0,24,34,27,29,28,23,29,22,25,20,31,16,18,17,104,98,102,107,96,58,62,66,62,8,8,5,5,6,7,3,7,7,8,7,8,8,8,8,8,8,8,8]} 1. d4 {[%emt 0:00:07]} Nf6 {[%emt 0:00:28]} 2. c4 {[%emt 0:00:11]} e6 {[%emt 0:00:23]} 3. Nf3 {[%emt 0:00:11]} d5 {[%emt 0:00:23]} 4. g3 {[%emt 0:00:11]} Be7 {[%emt 0:00:45]} 5. Bg2 {[%emt 0:00:16]} O-O {[%emt 0:00:38]} 6. O-O {[%emt 0:00:13]} dxc4 {[%emt 0:00:32]} 7. Qc2 {[%emt 0:00:37]} a6 {[%emt 0:01:01]} 8. a4 {[%emt 0:00:31]} Bd7 {[%emt 0:01:00]} 9. Rd1 {[%emt 0:00:39]} Bc6 {[%emt 0:04:09]} 10. Nc3 {[%emt 0:00:20]} Bxf3 {[%emt 0:08:55]} 11. Bxf3 {[%emt 0:00:13]} Nc6 {[%emt 0:00:52]} 12. Bxc6 {[%emt 0:00:28]} bxc6 {[%emt 0:00:17]} 13. a5 {[%emt 0:00:23]} Nd5 $1 {[%emt 0:06:12][%mdl 4] is currently scoring better than 13...Rb8. E05: Open Catalan: 5 Nf3 Be7.} 14. Na2 {[%emt 0:07:11]} Qb8 {[%emt 0:03:32]} 15. Qxc4 {[%emt 0:03:19]} Qb5 {[%emt 0:00:48] White is slightly better.} 16. Qxb5 {[%emt 0:01:01]} cxb5 {[%emt 0:01:12]} 17. e4 {[%emt 0:00:57]} Nb4 {[%emt 0:09:59]} 18. Nxb4 {[%emt 0:00:57]} Bxb4 {[%emt 0:00:05]} 19. Be3 $146 {[%emt 0:03:44]} (19. Bd2 Bxd2 20. Rxd2 Rfd8 21. b4 Rd6 22. Rc1 Rad8 23. Rxc7 g6 24. d5 exd5 25. e5 {½-½ Sturua,Z (2529)-Davtyan,A (2454) Yerevan Margaryan Memorial GM 2022 (5)}) 19... f5 {[%emt 0:06:58]} 20. Rdc1 fxe4 {[%emt 0:01:34]} 21. Rxc7 {[%emt 0:20:44]} Rf7 {[%emt 0:03:26]} (21... Rfc8 $11 22. Rac1 Rd8 (22... Rxc7 23. Rxc7 Kf8 24. Bf4 $14)) 22. Rc6 $16 {[%emt 0:01:38]} Re7 {[%emt 0:01:11]} 23. Bf4 {[%emt 0:05:47]} Kf7 {[%emt 0:03:14]} 24. Bd6 {[%emt 0:05:05] White is more active.} Bxd6 {[%emt 0:00:28]} 25. Rxd6 $14 {[%emt 0:00:02][%mdl 4096] Endgame KRR-KRR} Raa7 {[%emt 0:44:58]} 26. Re1 {[%emt 0:48:45]} ({Better is} 26. Rc1 $14) 26... Red7 $11 {[%emt 0:00:30] The position is equal.} 27. Rxd7+ {[%emt 0:00:00]} Rxd7 {[%emt 0:00:00]} 28. Rxe4 {[%emt 0:00:00] KR-KR. White is a pawn up.} Rc7 29. Re5 {[%emt 0:01:30]} Rc1+ {[%emt 0:00:00]} 30. Kg2 {[%emt 0:00:30]} Rd1 {[%emt 0:00:00]} 31. Rc5 {[%emt 0:00:30]} Rxd4 {[%emt 0:00:00]} 32. Rc6 {[%emt 0:00:00]} Rb4 {[%emt 0:00:00]} 33. Rxa6 {[%emt 0:00:00]} Rxb2 {[%emt 0:00:00]} 34. Rb6 {[%emt 0:00:00]} b4 {[%emt 0:00:00]} 35. a6 {[%emt 0:00:00] Weighted Error Value: White=0.09 (flawless) /Black=0.11 (very precise)   Mistake:       	White=1     	Black=1      Inaccurate:     	White=1     	---        OK:         	White=12    	Black=8      Best:        	White=2     	Black=4} 1/2-1/2

[Event "EICC 2025"]
[Site "Eforie-Nord"]
[Date "2025.03.16"]
[Round "2.14"]
[White "Psyk, Radoslaw"]
[Black "Grandelius, Nils"]
[Result "1/2-1/2"]
[Annotator "TA"]
[ECO "B22"]
[WhiteElo "2467"]
[BlackElo "2644"]
[PlyCount "141"]
[EventDate "2025.03.14"]
[EventType "swiss"]
[EventCountry "ROU"]
[SourceTitle "playchess.com"]
[Source "ChessBase"]
[SourceQuality "1"]
[TimeControl "40/5400+30:1800+30"]

{[%evp 13,141,16,36,0,0,0,0,6,18,16,13,8,26,-7,4,-17,8,-43,-27,-20,-20,-28,-22,-19,-19,-56,-64,-97,-58,-64,-53,-102,-79,-80,-70,-65,-54,-93,-75,-78,-78,-72,-60,-107,-113,-254,-124,-112,-85,-94,-98,-88,-73,-115,-117,-102,-93,-117,-84,-63,-37,-46,-35,-66,-20,-72,-27,-32,22,22,2,14,12,16,7,0,0,0,0,-208,0,0,0,0,0,0,0,-11,70,-56,-43,-45,-50,-114,-116,-106,-77,-83,-6,-8,0,0,8,0,0,0,0,7,23,0,0,0,0,0,0,0,0,0,0,0,0,0,0,0,0,0,0,0,0,0]} 1. e4 {[%emt 0:00:19]} c5 {[%emt 0:00:38][%cal Bc7c5,Bc5c4][%mdl 32]} 2. c3 {[%emt 0:00:31]} Nf6 {[%emt 0:00:56]} 3. e5 {[%emt 0:00:18]} Nd5 {[%emt 0:00:07]} 4. Bc4 {[%emt 0:00:09]} Nb6 {[%emt 0:00:56]} 5. Bb3 {[%emt 1:31:43]} c4 {[%emt 0:00:23]} 6. Bc2 {[%emt 0:00:00]} Nc6 {[%emt 0:00:06]} 7. Nf3 {[%emt 0:00:00]} g6 {[%emt 0:00:32]} 8. d4 {[%emt 0:00:00] B22: Sicilian: 2 c3.} cxd3 {[%emt 0:00:53]} 9. Qxd3 {[%emt 0:00:00]} d6 {[%emt 0:05:29]} 10. Qe2 $146 {[%emt 0:00:00]} (10. Bb3 dxe5 11. Qxd8+ Nxd8 12. Nxe5 Bg7 13. Bf4 Be6 14. O-O g5 15. Bg3 f5 16. f4 Bxe5 17. fxe5 {0-1 Sengupta,D (2497)-Sammed Jaykumar,S (2408) Asian Continental op 19th 2022 (6)}) 10... Bg7 {[%emt 0:03:38]} 11. exd6 {[%emt 0:00:00]} Qxd6 {[%emt 0:00:30]} 12. O-O {[%emt 0:00:00]} O-O {[%emt 0:00:45]} 13. Nbd2 {[%emt 0:00:00]} Qc7 {[%emt 0:03:20]} 14. Ne4 {[%emt 0:00:00]} Bg4 {[%emt 0:23:04]} 15. Neg5 {[%emt 0:00:00]} ({White should try} 15. Bg5 $11) 15... h6 {[%emt 0:04:32]} 16. h3 {[%emt 0:00:00]} Bf5 {[%emt 0:07:38]} 17. Ne4 {[%emt 0:00:00]} (17. Bxf5 gxf5 18. Nh4 hxg5 $17) 17... Rad8 {[%emt 0:00:32]} 18. Re1 {[%emt 0:00:00]} Nd5 {[%emt 0:00:30]} 19. Nh4 {[%emt 0:00:00]} Bc8 {[%emt 0:00:30]} 20. a4 {[%emt 0:00:00]} b6 {[%emt 0:00:30][%cal Od5b4]} 21. Bb3 {[%emt 0:00:00]} e6 {[%emt 0:17:47]} 22. g3 {[%emt 0:00:00]} (22. Qf3 $15) 22... Ne5 {[%emt 0:07:18]} 23. f4 {[%emt 0:02:15]} Nd7 {[%emt 0:00:32]} 24. Nf3 {[%emt 0:00:52]} Bb7 {[%emt 0:00:20][%cal Rd5c3]} 25. Bd2 {[%emt 0:00:36]} N5f6 {[%emt 0:05:24]} 26. Nxf6+ {[%emt 0:02:33]} Nxf6 {[%emt 0:00:09]} 27. Be3 {[%emt 0:01:05]} Nd5 {[%emt 0:08:35]} 28. Rad1 {[%emt 0:02:06]} (28. Bxd5 $1 $15 Rxd5 (28... Bxd5 $2 29. Kh2 $19) 29. Bd4) 28... Qc6 $17 {[%emt 0:01:41]} 29. Kf2 {[%emt 0:01:40] [#]} (29. Rf1 $17 {might work better.}) 29... Nxe3 {[%emt 0:04:03]} (29... Bxc3 $1 $19 {is more deadly.} 30. bxc3 Nxc3) 30. Qxe3 {[%emt 0:00:04]} Rfe8 {[%emt 0:00:58]} 31. Rxd8 {[%emt 0:00:38]} Rxd8 {[%emt 0:00:01]} 32. Rd1 {[%emt 0:01:41]} Re8 {[%emt 0:00:16]} 33. Rd3 {[%emt 0:00:00]} Bf8 {[%emt 0:00:33]} 34. Qe5 {[%emt 0:00:27]} Bc5+ {[%emt 0:00:28]} 35. Kg2 {[%emt 0:00:16]} Ba6 {[%emt 0:02:24] This pair of bishops is nice.} 36. Rd1 {[%emt 0:00:01]} Qa8 {[%emt 0:00:56]} (36... Kh7 {looks sharper.} 37. h4 Kg8 38. h5 Bb7) 37. Bc2 {[%emt 0:00:55]} Bb7 {[%emt 0:02:06]} 38. Qe2 {[%emt 0:00:46]} a5 {[%emt 0:00:00]} (38... Rd8 $15 {is more appropriate.}) 39. g4 {[%emt 0:00:30]} (39. h4 $11 {keeps the balance.}) 39... Qb8 {[%emt 0:00:25]} 40. Be4 {[%emt 0:00:20]} Qc7 {[%emt 0:00:33]} (40... Bxe4 $15 41. Qxe4 Bd6) 41. Qb5 $11 {[%emt 0:09:05]} Rb8 {[%emt 0:08:18]} 42. Rd7 {[%emt 0:14:13]} Qc8 {[%emt 0:00:03] Black is weak on the light squares} 43. Bxb7 {[%emt 0:00:48]} Rxb7 {[%emt 0:00:02]} 44. Ne5 {[%emt 0:01:38] Counterplay Black} Rc7 {[%emt 0:09:50]} 45. Kg3 {[%emt 0:03:47] Active counter play!} g5 {[%emt 0:00:50]} 46. f5 {[%emt 0:00:37] [#]} (46. fxg5 $11 {and White stays safe.} hxg5 47. Qd3) 46... exf5 $2 {[%emt 0:03:10]} (46... Qb8 $1 $19 {And now ...Rxd7 would win.} 47. Kf3 Qb7+ (47... Rxd7 48. Nxd7 Qf4+ 49. Ke2 $15) 48. Ke2 (48. Kg3 $2 Qe4 $19) 48... Qe4+ 49. Kd1 Qxe5 50. Rd8+ Kh7) 47. gxf5 {[%emt 0:00:20]} Qe8 {[%emt 0:04:52]} 48. Rd5 {[%emt 0:01:40]} Qe7 {[%emt 0:00:02]} 49. Qd3 {[%emt 0:00:29]} h5 {[%emt 0:04:26]} 50. Nf3 {[%emt 0:01:38][%cal Of5f6]} Qf6 {[%emt 0:02:22]} (50... f6 $11) 51. Qd2 {[%emt 0:00:13]} (51. Nd2 $1 $14 Qe7 52. Ne4) 51... Be7 $15 {[%emt 0:00:14]} 52. Qd4 {[%emt 0:01:42] Repels Rc4} Qxd4 {[%emt 0:00:49]} 53. Nxd4 {[%emt 0:00:02][%mdl 4096] Endgame KRB-KRN} (53. Rxd4 $15 Kg7 54. Nd2) 53... Rc4 $17 {[%emt 0:00:43]} 54. Rb5 {[%emt 0:00:56]} Bc5 {[%emt 0:00:44][%cal Og8g7]} 55. Nb3 {[%emt 0:00:20]} Bd6+ {[%emt 0:00:09]} ({Black should try} 55... Rxa4 $17 {...Bd6+ is in the air} 56. Nxc5 bxc5 57. Rxc5 Kg7) 56. Kg2 $11 {[%emt 0:00:08]} Rxa4 {[%emt 0:01:14]} 57. Rxb6 {[%emt 0:00:11]} Be5 {[%emt 0:00:26]} 58. Rb5 {[%emt 0:01:11]} f6 {[%emt 0:00:32]} 59. Nxa5 {[%emt 0:00:20]} Re4 {[%emt 0:00:42]} 60. Nc6 {[%emt 0:00:02]} Bf4 {[%emt 0:00:23]} 61. Nd4 {[%emt 0:00:41]} Re3 {[%emt 0:00:32] The position is equal.} 62. Ne6 {[%emt 0:01:12]} Be5 {[%emt 0:00:20]} 63. Kf2 {[%emt 0:00:30]} Rxh3 {[%emt 0:00:11]} 64. Nxg5 $1 {[%emt 0:00:22]} fxg5 {[%emt 0:00:32]} 65. Rxe5 {[%emt 0:00:02] KR-KR. White is a pawn up.} Kf7 {[%emt 0:00:14]} 66. Kg2 {[%emt 0:00:48]} Rd3 {[%emt 0:00:05]} 67. Re2 {[%emt 0:00:41]} Kf6 {[%emt 0:00:23][%cal Oh5h4]} 68. c4 {[%emt 0:00:08]} Rd4 {[%emt 0:01:22]} 69. Rc2 {[%emt 0:00:19]} Rg4+ {[%emt 0:00:46]} 70. Kf1 {[%emt 0:01:05] Black must now prevent c5.} Rf4+ {[%emt 0:00:04]} 71. Kg2 {[%emt 0:00:09] White happily takes the draw.   Weighted Error Value: White=0.22 (precise) /Black=0.23 (precise)   Loses game:     	White=1     	---        Missed win:     	---       	Black=1      Mistake:       	White=7     	Black=5      Inaccurate:     	White=5     	Black=3      OK:         	White=31    	Black=24     Best:        	White=4     	Black=4      Strong:       	White=1     	---} 1/2-1/2